bitfinex-derivatives/quotes_BTCF0:USTF0_20250117
["timestamp","ask_amount","ask_price","bid_price","bid_amount"]
[1737127663973,0.409038,103640.0,103630.0,0.2247693]
[1737127664364,0.54329782,103640.0,103630.0,0.2247693]
[1737127664767,0.18249782,103640.0,103630.0,0.2247693]
[1737127665175,0.67755764,103640.0,103630.0,0.2247693]
[1737127665375,0.54329782,103640.0,103630.0,0.2247693]
[1737127665667,0.048241,103630.0,103620.0,0.2114]
[1737127666064,0.048241,103630.0,103620.0,0.70677751]
[1737127666259,0.3608,103640.0,103620.0,0.70677751]
[1737127666464,0.18250082,103630.0,103620.0,0.2114]
[1737127666667,0.54330082,103630.0,103620.0,0.2114]
[1737127666866,0.54330082,103630.0,103620.0,0.4361693]
[1737127667368,0.18250082,103630.0,103620.0,0.4361693]
[1737127667569,0.54330082,103630.0,103620.0,0.4361693]
[1737127668170,0.409041,103630.0,103620.0,0.48200821]
[1737127668368,0.048241,103630.0,103620.0,1.06757751]
[1737127668671,0.49505982,103640.0,103620.0,1.06757751]
[1737127668672,0.54329982,103640.0,103620.0,1.06757751]
[1737127668875,0.54329582,103640.0,103630.0,0.2247693]
[1737127669369,0.18249582,103640.0,103630.0,0.2247693]
[1737127669576,0.54329582,103640.0,103630.0,0.2247693]
[1737127670578,0.54329582,103640.0,103630.0,0.21213963]
[1737127672873,0.409036,103640.0,103630.0,0.21213963]
[1737127673579,0.37404969,103650.0,103630.0,0.48274784]
[1737127673880,0.00144838,103680.0,103660.0,0.09912759]
[1737127674068,0.49109691,103680.0,103670.0,0.76576141]
[1737127674269,0.2878975,103690.0,103670.0,0.81398341]
[1737127674473,0.46489525,103700.0,103680.0,0.76936141]
[1737127674673,0.46489525,103700.0,103690.0,0.41170159]
[1737127675074,0.41668725,103700.0,103690.0,0.41170159]
[1737127675372,0.409005,103710.0,103690.0,0.54596141]
[1737127675577,0.409005,103710.0,103700.0,0.05090159]
[1737127675781,0.54326482,103710.0,103700.0,0.05090159]
[1737127675977,0.54326482,103710.0,103700.0,0.01727802]
[1737127676175,0.54326482,103710.0,103680.0,0.81028866]
[1737127676176,0.048213,103690.0,103680.0,0.81028866]
[1737127676373,0.54327282,103690.0,103680.0,0.16825129]
[1737127676574,0.048217,103680.0,103670.0,0.18730597]
[1737127676779,0.67753664,103680.0,103670.0,0.11397657]
[1737127676980,0.048222,103670.0,103660.0,0.10040223]
[1737127677278,0.048222,103670.0,103650.0,0.339133]
[1737127677279,0.048227,103660.0,103650.0,0.339133]
[1737127677481,0.54328682,103660.0,103650.0,0.35641102]
[1737127677876,0.54328682,103660.0,103650.0,0.01727802]
[1737127678078,0.048241,103630.0,103620.0,0.2153]
[1737127678478,0.048241,103630.0,103620.0,0.45977802]
[1737127678978,0.048241,103630.0,103620.0,0.82057802]
[1737127680285,0.3608,103640.0,103620.0,0.82057802]
[1737127680286,0.409038,103640.0,103620.0,0.82057802]
[1737127680580,0.409038,103640.0,103630.0,0.01727802]
[1737127680787,0.409034,103650.0,103630.0,0.37807802]
[1737127680976,0.3608,103660.0,103640.0,0.01727802]
[1737127681175,0.048228,103660.0,103650.0,0.01727802]
[1737127681371,0.17232766,103680.0,103650.0,0.45129474]
[1737127681578,0.22054666,103680.0,103670.0,0.01727802]
[1737127682489,0.409015,103690.0,103670.0,0.37807802]
[1737127682682,0.048215,103690.0,103680.0,0.22997802]
[1737127682882,0.56906479,103700.0,103680.0,0.22997802]
[1737127683075,0.56906479,103700.0,103690.0,0.01727802]
[1737127683076,0.41045807,103700.0,103690.0,0.01727802]
[1737127683986,0.61727479,103700.0,103690.0,0.01727802]
[1737127684384,0.42479046,103700.0,103690.0,0.01727802]
[1737127684685,0.01578046,103700.0,103690.0,0.37807802]
[1737127684882,0.01578046,103700.0,103690.0,0.01727802]
[1737127685279,0.01578046,103700.0,103690.0,0.37807802]
[1737127685478,0.048201,103720.0,103690.0,0.37807802]
[1737127685778,0.61582072,103710.0,103700.0,0.23187802]
[1737127686282,0.048213,103690.0,103680.0,0.4388]
[1737127686484,0.61582972,103690.0,103680.0,0.4388]
[1737127686786,0.61582972,103690.0,103680.0,0.01727802]
[1737127688382,0.048222,103670.0,103640.0,0.582]
[1737127688588,0.048236,103640.0,103630.0,0.4397]
[1737127688991,0.048233,103650.0,103630.0,0.8005]
[1737127689881,0.25505272,103640.0,103620.0,0.3608]
[1737127690093,0.25505872,103630.0,103610.0,0.96054209]
[1737127690292,0.048242,103630.0,103610.0,0.96054209]
[1737127690480,0.048245,103620.0,103610.0,0.7921]
[1737127690794,0.04825,103610.0,103600.0,0.26844209]
[1737127691089,0.048246,103620.0,103600.0,0.62924209]
[1737127691290,0.048242,103630.0,103610.0,0.3608]
[1737127691478,0.048242,103630.0,103610.0,0.5785]
[1737127691683,0.048233,103650.0,103620.0,0.3608]
[1737127691991,0.048233,103650.0,103630.0,0.5749]
[1737127692378,0.06276668,103650.0,103630.0,0.5749]
[1737127692582,0.01453368,103650.0,103640.0,0.3608]
[1737127692783,0.22055566,103660.0,103630.0,0.5749]
[1737127692978,0.048233,103650.0,103630.0,0.5749]
[1737127693184,0.048233,103650.0,103640.0,0.3608]
[1737127693390,0.22198763,103700.0,103650.0,0.048231]
[1737127693682,0.22198763,103700.0,103680.0,0.3608]
[1737127693683,0.23622994,103700.0,103680.0,0.3608]
[1737127693885,0.59702994,103700.0,103680.0,0.3608]
[1737127694480,0.18802094,103700.0,103690.0,0.3608]
[1737127694691,0.01569328,103700.0,103690.0,0.3608]
[1737127694882,0.06390128,103700.0,103690.0,0.3608]
[1737127695085,0.270718,103700.0,103680.0,0.3608]
[1737127695395,0.06390128,103700.0,103680.0,0.3608]
[1737127695582,0.25502972,103690.0,103680.0,0.3608]
[1737127695781,0.20681672,103690.0,103670.0,0.2103]
[1737127695985,0.37649328,103700.0,103670.0,0.2103]
[1737127695986,0.048217,103680.0,103670.0,0.2103]
[1737127696185,0.06390228,103700.0,103670.0,0.5711]
[1737127696397,0.06390228,103700.0,103690.0,0.3608]
[1737127696586,0.01569328,103700.0,103690.0,0.3608]
[1737127696781,0.01569328,103700.0,103690.0,0.5737]
[1737127697592,0.05967232,103730.0,103690.0,0.82872972]
[1737127697888,0.05967232,103730.0,103710.0,0.3608]
[1737127697889,0.048195,103730.0,103710.0,0.3608]
[1737127698695,0.408991,103740.0,103710.0,0.3608]
[1737127698899,0.47140632,103740.0,103710.0,0.3608]
[1737127699086,0.42321332,103740.0,103710.0,0.3608]
[1737127699287,0.06241332,103740.0,103710.0,0.3608]
[1737127699489,0.06241332,103740.0,103720.0,0.3608]
[1737127699784,0.06241232,103740.0,103730.0,0.3608]
[1737127699984,0.01422232,103740.0,103720.0,0.3608]
[1737127700192,0.41042815,103760.0,103730.0,0.3608]
[1737127700392,0.04962815,103760.0,103740.0,0.3608]
[1737127700890,0.04962815,103760.0,103730.0,0.5747]
[1737127700891,0.25500172,103750.0,103730.0,0.7835]
[1737127701093,0.25500672,103740.0,103730.0,0.4227]
[1737127701397,0.04819,103740.0,103710.0,0.52924209]
[1737127701892,0.40899,103740.0,103720.0,0.3608]
[1737127702094,0.04819,103740.0,103720.0,0.3608]
[1737127702798,0.04819,103740.0,103730.0,0.3608]
[1737127703095,0.04819,103740.0,103720.0,0.3608]
[1737127703394,0.25500672,103740.0,103720.0,0.3608]
[1737127703589,0.04819,103740.0,103720.0,0.3608]
[1737127705001,0.04819,103740.0,103710.0,0.3608]
[1737127705305,0.00144715,103760.0,103730.0,0.56761672]
[1737127705496,0.00144715,103760.0,103750.0,0.92841672]
[1737127705802,0.75592766,103790.0,103750.0,1.19040172]
[1737127705803,0.3608,103790.0,103750.0,1.19040172]
[1737127705986,0.27232766,103800.0,103780.0,0.3608]
[1737127706190,0.28657588,103800.0,103780.0,0.56761672]
[1737127706498,0.28657588,103800.0,103780.0,0.6124]
[1737127706893,0.28657588,103800.0,103780.0,0.66057]
[1737127707088,0.11424822,103800.0,103790.0,0.3608]
[1737127707498,0.11424822,103800.0,103790.0,0.6102]
[1737127707691,0.11424822,103800.0,103790.0,0.86518272]
[1737127707995,0.408948,103830.0,103800.0,0.048161]
[1737127708196,0.408948,103830.0,103800.0,0.61577772]
[1737127708709,0.3608,103830.0,103800.0,0.61577772]
[1737127708894,0.408944,103840.0,103810.0,0.048156]
[1737127709200,0.61577072,103820.0,103790.0,0.658365]
[1737127709594,0.408959,103810.0,103790.0,0.2494]
[1737127709791,0.408959,103810.0,103790.0,0.6102]
[1737127710001,0.01435302,103840.0,103800.0,0.56761672]
[1737127710289,0.04958076,103860.0,103830.0,0.56761672]
[1737127710494,0.3608,103850.0,103830.0,0.3608]
[1737127710689,0.408939,103850.0,103830.0,0.3608]
[1737127710893,0.3608,103850.0,103830.0,0.3608]
[1737127711094,0.4247396,103860.0,103830.0,0.5954]
[1737127711299,0.408941,103850.0,103830.0,0.5954]
[1737127711504,0.408943,103840.0,103830.0,0.2346]
[1737127711703,0.408943,103840.0,103820.0,0.6044]
[1737127711704,0.048148,103830.0,103820.0,0.2436]
[1737127711895,0.048148,103830.0,103800.0,0.3608]
[1737127711896,0.61576472,103830.0,103800.0,0.3608]
[1737127712204,0.408948,103830.0,103800.0,0.3608]
[1737127712705,0.048153,103820.0,103800.0,0.3608]
[1737127713000,0.408949,103830.0,103800.0,0.40896]
[1737127713401,0.048153,103820.0,103800.0,0.3608]
[1737127714114,0.56761672,103830.0,103800.0,0.3608]
[1737127714299,0.408949,103830.0,103810.0,0.3608]
[1737127714501,0.408949,103830.0,103800.0,0.408959]
[1737127715905,0.00033959,103810.0,103800.0,0.408958]
[1737127716096,0.00033959,103810.0,103800.0,0.3608]
[1737127717607,0.40929859,103810.0,103790.0,0.4782]
[1737127717807,0.40929859,103810.0,103800.0,0.3608]
[1737127717808,0.04849859,103810.0,103800.0,0.3608]
[1737127718004,0.00033959,103810.0,103800.0,0.3608]
[1737127718204,0.00033959,103810.0,103800.0,0.408962]
[1737127718907,0.00033959,103810.0,103800.0,0.61577872]
[1737127719107,0.408941,103850.0,103800.0,0.86761672]
[1737127719311,0.40894,103850.0,103820.0,0.408952]
[1737127719505,0.3608,103850.0,103830.0,0.048147]
[1737127719706,0.04958276,103860.0,103830.0,0.644947]
[1737127719911,0.3608,103850.0,103830.0,0.644947]
[1737127721607,0.3608,103850.0,103830.0,0.5968]
[1737127722011,0.3608,103850.0,103830.0,0.236]
[1737127722808,0.3608,103840.0,103830.0,0.236]
[1737127723207,0.56761672,103840.0,103820.0,0.2343]
[1737127723414,0.56761672,103840.0,103810.0,0.235]
[1737127723415,0.61576772,103830.0,103810.0,0.235]
[1737127723611,0.048144,103840.0,103810.0,0.643955]
[1737127723811,0.048144,103840.0,103810.0,0.5958]
[1737127724112,0.25496972,103820.0,103790.0,0.643266]
[1737127724415,0.61576972,103820.0,103790.0,0.8301]
[1737127724713,0.56761672,103810.0,103790.0,0.8301]
[1737127724902,0.3608,103810.0,103790.0,0.8301]
[1737127725621,0.3608,103810.0,103790.0,0.2343]
[1737127725622,0.048162,103800.0,103790.0,0.2343]
[1737127725813,0.61577872,103800.0,103770.0,0.294573]
[1737127726010,0.61577872,103800.0,103770.0,0.532773]
[1737127726011,0.3608,103790.0,103770.0,0.532773]
[1737127726912,0.408966,103790.0,103770.0,0.4846]
[1737127727113,0.3608,103790.0,103770.0,0.893573]
[1737127727313,0.3608,103790.0,103780.0,0.048171]
[1737127727512,0.048164,103800.0,103780.0,0.048171]
[1737127727814,0.37508175,103820.0,103800.0,0.048161]
[1737127728017,0.01428175,103820.0,103810.0,0.408957]
[1737127728317,0.29478176,103860.0,103820.0,0.0963]
[1737127728318,0.36224576,103860.0,103820.0,0.0963]
[1737127728507,0.04957976,103860.0,103840.0,0.048142]
[1737127728709,0.04957976,103860.0,103830.0,0.408947]
[1737127728917,0.61719648,103860.0,103830.0,0.408947]
[1737127729116,0.63209361,103860.0,103830.0,0.408947]
[1737127729520,0.58395961,103860.0,103830.0,0.408947]
[1737127729814,0.37714289,103860.0,103830.0,0.408945]
[1737127730219,0.408939,103850.0,103830.0,0.3608]
[1737127730517,0.048139,103850.0,103830.0,0.3608]
[1737127730714,0.61575572,103850.0,103820.0,0.408951]
[1737127730911,0.25495572,103850.0,103820.0,0.408951]
[1737127731315,0.25495572,103850.0,103830.0,0.3608]
[1737127731522,0.048139,103850.0,103830.0,0.3608]
[1737127731720,0.408939,103850.0,103830.0,0.3608]
[1737127731927,0.63209461,103860.0,103830.0,0.3608]
[1737127732213,0.63209461,103860.0,103820.0,0.408949]
[1737127732214,0.25495572,103850.0,103820.0,0.408949]
[1737127732418,0.048139,103850.0,103820.0,0.408949]
[1737127732723,0.408939,103850.0,103820.0,0.408949]
[1737127733107,0.408939,103850.0,103820.0,0.457098]
[1737127733312,0.42527889,103860.0,103830.0,0.3608]
[1737127733507,0.37714289,103860.0,103830.0,0.3608]
[1737127733713,0.048139,103850.0,103830.0,0.3608]
[1737127734008,0.048139,103850.0,103820.0,0.408949]
[1737127734210,0.048139,103850.0,103830.0,0.3608]
[1737127734411,0.42527789,103860.0,103830.0,0.408947]
[1737127735017,0.42527789,103860.0,103850.0,0.3608]
[1737127735018,0.01634289,103860.0,103850.0,0.3608]
[1737127735224,0.01634289,103860.0,103850.0,0.61575572]
[1737127735521,0.00144576,103860.0,103850.0,1.14325572]
[1737127735707,0.00144576,103860.0,103850.0,0.936439]
[1737127735911,0.00144576,103860.0,103850.0,0.8883]
[1737127736119,0.00144576,103860.0,103850.0,0.5275]
[1737127736321,0.00144576,103860.0,103850.0,0.3608]
[1737127736625,0.00144576,103860.0,103840.0,0.82669601]
[1737127736825,0.56906248,103860.0,103840.0,0.77855401]
[1737127737123,0.25640048,103860.0,103840.0,0.16605401]
[1737127737526,0.04958376,103860.0,103840.0,0.16605401]
[1737127737828,0.04958376,103860.0,103830.0,0.82800101]
[1737127738028,0.41038376,103860.0,103830.0,0.82800101]
[1737127738320,0.04958376,103860.0,103830.0,0.82800101]
[1737127738622,0.3608,103850.0,103830.0,0.16605401]
[1737127738821,0.56906248,103860.0,103830.0,0.57500201]
[1737127738822,0.04958176,103860.0,103830.0,0.57500201]
[1737127739021,0.00144576,103860.0,103850.0,0.3608]
[1737127739323,0.00144576,103860.0,103830.0,0.78181473]
[1737127739324,0.00144576,103860.0,103840.0,0.61575872]
[1737127739521,0.00144576,103860.0,103850.0,0.3608]
[1737127740324,0.00144576,103860.0,103840.0,0.662442]
[1737127740523,0.56906248,103860.0,103840.0,0.2535]
[1737127740724,0.048143,103840.0,103830.0,0.38994825]
[1737127740919,0.048143,103840.0,103830.0,0.36341167]
[1737127741117,0.54034576,103860.0,103830.0,0.50031743]
[1737127741420,0.08589698,103890.0,103860.0,0.04813]
[1737127741624,0.08589698,103890.0,103870.0,0.3608]
[1737127741918,0.85465698,103900.0,103870.0,0.408928]
[1737127742121,0.44573898,103900.0,103880.0,0.56761672]
[1737127742319,0.1,103900.0,103890.0,0.56761672]
[1737127742627,0.18507776,103920.0,103890.0,0.61573672]
[1737127742825,0.18507776,103920.0,103900.0,0.408913]
[1737127744117,0.18507776,103920.0,103910.0,0.3608]
[1737127744118,0.01453658,103920.0,103910.0,0.3608]
[1737127744316,0.41034856,103930.0,103900.0,0.408913]
[1737127744515,0.36224456,103930.0,103900.0,0.3608]
[1737127744722,0.00144456,103930.0,103920.0,0.408906]
[1737127745520,0.00144456,103930.0,103920.0,0.61572272]
[1737127745727,0.408893,103950.0,103920.0,0.3608]
[1737127745916,0.3608,103930.0,103910.0,0.677307]
[1737127746111,0.20681672,103920.0,103900.0,0.6106]
[1737127746312,0.3608,103920.0,103900.0,0.297915]
[1737127746519,0.408908,103920.0,103900.0,0.6106]
[1737127747020,0.6365,103940.0,103910.0,0.3608]
[1737127747217,0.323799,103940.0,103910.0,0.40891]
[1737127747418,0.06588527,103950.0,103920.0,0.048106]
[1737127747720,0.25491572,103940.0,103910.0,0.3608]
[1737127747924,0.3608,103930.0,103910.0,0.3608]
[1737127748521,0.3608,103930.0,103910.0,0.408909]
[1737127748724,0.3608,103930.0,103900.0,0.6106]
[1737127749026,0.3608,103920.0,103900.0,0.6106]
[1737127749522,0.61572272,103920.0,103900.0,0.2498]
[1737127749916,0.3608,103910.0,103900.0,0.2498]
[1737127750126,0.048123,103890.0,103860.0,0.3622439]
[1737127750422,0.3608,103880.0,103860.0,0.3122779]
[1737127750626,0.3608,103880.0,103860.0,0.2641439]
[1737127750825,0.61574172,103880.0,103860.0,0.2641439]
[1737127751025,0.048129,103870.0,103860.0,0.0014439]
[1737127751421,0.408921,103890.0,103860.0,0.61574972]
[1737127751617,0.408917,103900.0,103870.0,0.408929]
[1737127751918,0.408917,103900.0,103850.0,0.671737]
[1737127751919,0.048125,103880.0,103850.0,0.671737]
[1737127752120,0.408921,103890.0,103860.0,0.048134]
[1737127752327,0.3608,103880.0,103860.0,0.048134]
[1737127752620,0.40893,103870.0,103850.0,0.6236]
[1737127752823,0.048134,103860.0,103840.0,0.6235]
[1737127753025,0.3608,103870.0,103840.0,0.46951672]
[1737127753220,0.0180742,103890.0,103860.0,0.3608]
[1737127753529,0.3608,103900.0,103870.0,0.61574472]
[1737127753734,0.408916,103900.0,103870.0,0.662228]
[1737127753919,0.3608,103900.0,103870.0,0.662226]
[1737127754325,0.3608,103900.0,103870.0,0.710352]
[1737127754525,0.3608,103900.0,103870.0,0.662226]
[1737127755327,0.42891763,103910.0,103880.0,0.408924]
[1737127755529,0.06811763,103910.0,103880.0,0.408924]
[1737127755926,0.02000563,103910.0,103880.0,0.408921]
[1737127756129,0.06811663,103910.0,103880.0,0.408921]
[1737127756327,0.00144485,103910.0,103900.0,0.408915]
[1737127756723,0.00144485,103910.0,103900.0,0.61573172]
[1737127757525,0.00144485,103910.0,103900.0,0.3608]
[1737127757725,0.00144485,103910.0,103900.0,0.61573172]
[1737127758838,0.00144485,103910.0,103900.0,0.408915]
[1737127759730,0.3608,103930.0,103900.0,0.61573172]
[1737127759924,0.06762745,103940.0,103920.0,0.408903]
[1737127760121,0.01952845,103940.0,103920.0,0.408903]
[1737127760824,0.06762545,103940.0,103920.0,0.3608]
[1737127761034,0.3608,103930.0,103910.0,0.662609]
[1737127761623,0.048107,103920.0,103900.0,0.3608]
[1737127761828,0.408903,103930.0,103900.0,0.408914]
[1737127762228,0.3608,103920.0,103900.0,0.408914]
[1737127762424,0.61573172,103910.0,103880.0,0.657524]
[1737127762632,0.048116,103900.0,103880.0,0.2486]
[1737127762833,0.408911,103910.0,103880.0,0.657522]
[1737127763031,0.3608,103910.0,103890.0,0.048119]
[1737127763434,0.3608,103920.0,103900.0,0.048113]
[1737127764031,0.3608,103920.0,103890.0,0.408919]
[1737127764032,0.408906,103920.0,103890.0,0.408919]
[1737127764227,0.3608,103900.0,103880.0,0.296724]
[1737127765027,0.3608,103900.0,103890.0,0.04812]
[1737127765233,0.01800394,103920.0,103900.0,0.048114]
[1737127765444,0.3608,103930.0,103910.0,0.408911]
[1737127765733,0.01806931,103930.0,103920.0,0.3608]
[1737127765932,0.17198553,103940.0,103920.0,0.408903]
[1737127766138,0.55055341,103940.0,103920.0,0.3608]
[1737127766346,0.59865141,103940.0,103910.0,0.408909]
[1737127766525,0.80546813,103940.0,103910.0,0.408909]
[1737127766731,0.63492695,103940.0,103910.0,0.408909]
[1737127767127,0.42811023,103940.0,103910.0,0.408908]
[1737127767534,0.42811023,103940.0,103930.0,0.61571772]
[1737127767535,0.00144435,103940.0,103930.0,0.61571772]
[1737127767738,0.00144435,103940.0,103920.0,0.25492172]
[1737127768038,0.00144435,103940.0,103920.0,0.61572172]
[1737127768441,0.00144435,103940.0,103920.0,0.61571972]
[1737127768638,0.00144435,103940.0,103930.0,0.3608]
[1737127768836,0.00144435,103940.0,103930.0,0.408901]
[1737127769239,0.00144435,103940.0,103930.0,0.3608]
[1737127769640,0.00144435,103940.0,103930.0,0.61571772]
[1737127770837,0.00144435,103940.0,103930.0,0.408901]
[1737127771038,0.00144435,103940.0,103920.0,0.676704]
[1737127771237,0.00144435,103940.0,103930.0,0.3608]
[1737127771438,0.00144435,103940.0,103930.0,0.61571772]
[1737127773340,1.07701718,103990.0,103960.0,0.048084]
[1737127773644,0.17054118,103990.0,103980.0,0.25489472]
[1737127773832,0.17054118,103990.0,103980.0,0.048078]
[1737127774235,0.17054118,103990.0,103980.0,0.408878]
[1737127774443,0.18877779,103990.0,103980.0,0.3608]
[1737127774844,0.01823661,103990.0,103980.0,0.3608]
[1737127775136,0.048079,103980.0,103940.0,0.84619424]
[1737127775341,0.3608,103970.0,103940.0,0.84619424]
[1737127775537,0.3608,103970.0,103940.0,0.670397]
[1737127775538,0.408884,103970.0,103940.0,0.670397]
[1737127775737,0.3608,103960.0,103940.0,0.670397]
[1737127776343,0.3608,103960.0,103940.0,0.87721372]
[1737127777141,0.3608,103970.0,103940.0,0.87721072]
[1737127777453,0.3608,103970.0,103950.0,0.408889]
[1737127778666,0.3608,103990.0,103970.0,0.04808]
[1737127778954,1.02635,104000.0,103970.0,0.40888]
[1737127779141,0.3608,103990.0,103970.0,0.40888]
[1737127779340,1.02635,104000.0,103970.0,0.40888]
[1737127779544,0.3608,103980.0,103960.0,0.456972]
[1737127779749,0.47934809,104000.0,103980.0,0.048078]
[1737127779948,0.47934809,104000.0,103980.0,0.25489172]
[1737127780141,0.47934809,104000.0,103980.0,0.048075]
[1737127780549,0.47934809,104000.0,103990.0,0.20681672]
[1737127780852,0.47934809,104000.0,103990.0,0.048074]
[1737127781051,0.11854809,104000.0,103990.0,0.048074]
[1737127781842,0.11854809,104000.0,103980.0,0.664176]
[1737127782151,0.47934809,104000.0,103970.0,0.3608]
[1737127782451,0.47934809,104000.0,103950.0,0.556791]
[1737127782452,0.3608,103980.0,103950.0,0.556791]
[1737127782653,0.3608,103980.0,103950.0,0.917588]
[1737127782847,0.3608,103980.0,103960.0,0.048086]
[1737127783048,0.3608,103980.0,103960.0,0.61570272]
[1737127783453,0.3608,103980.0,103960.0,0.408886]
[1737127783649,0.048074,103990.0,103960.0,0.408886]
[1737127783856,0.408874,103990.0,103960.0,0.61570272]
[1737127784058,0.3608,103980.0,103960.0,0.61570272]
[1737127784362,0.3608,103970.0,103950.0,0.917591]
[1737127784552,0.408876,103990.0,103960.0,0.3608]
[1737127784753,0.048076,103990.0,103960.0,0.408887]
[1737127784952,0.408876,103990.0,103960.0,0.408887]
[1737127785158,0.52741809,104000.0,103970.0,0.61569872]
[1737127785453,0.47934809,104000.0,103980.0,0.048078]
[1737127785754,0.47934809,104000.0,103980.0,0.408878]
[1737127787862,0.20681672,103990.0,103970.0,0.3608]
[1737127788065,0.47934809,104000.0,103970.0,0.408879]
[1737127788363,0.11854809,104000.0,103990.0,0.3608]
[1737127788562,0.1,104000.0,103990.0,0.61569072]
[1737127788764,0.1,104000.0,103990.0,0.86619072]
[1737127788959,0.1,104000.0,103990.0,0.659374]
[1737127789160,0.1,104000.0,103990.0,0.65905969]
[1737127789564,0.1,104000.0,103990.0,0.92795969]
[1737127790057,0.1,104000.0,103990.0,0.567474]
[1737127791561,0.1,104000.0,103990.0,0.928274]
[1737127792060,0.1,104000.0,103990.0,0.567474]
[1737127793267,0.1,104000.0,103990.0,0.2505]
[1737127793466,0.1,104000.0,103990.0,0.6113]
[1737127793662,0.1,104000.0,103990.0,0.659374]
[1737127794167,0.1,104000.0,103990.0,0.298574]
[1737127795072,0.1,104000.0,103990.0,0.659374]
[1737127795253,0.1,104000.0,103990.0,0.86619072]
[1737127795457,0.00144321,104020.0,104010.0,0.048064]
[1737127795653,0.00144321,104020.0,104010.0,0.97648072]
[1737127795860,0.00144321,104020.0,104010.0,1.22498072]
[1737127796365,0.58053187,104040.0,104010.0,1.018164]
[1737127796561,0.408856,104030.0,104010.0,0.2485]
[1737127796763,0.55024428,104040.0,104010.0,0.296563]
[1737127796961,0.048056,104030.0,104010.0,0.296563]
[1737127797256,0.42661541,104040.0,104020.0,0.048059]
[1737127797462,0.42661541,104040.0,104010.0,0.705423]
[1737127798164,0.01776441,104040.0,104020.0,0.56761672]
[1737127798369,1.02277987,104060.0,104030.0,0.61567172]
[1737127798370,0.17167987,104060.0,104030.0,0.61567172]
[1737127798567,0.2375036,104060.0,104030.0,0.408855]
[1737127799070,0.44432032,104060.0,104030.0,0.408855]
[1737127799261,0.27264045,104060.0,104030.0,0.408855]
[1737127799456,0.408846,104050.0,104030.0,0.3608]
[1737127799666,0.408846,104050.0,104020.0,0.677357]
[1737127800262,0.37858073,104060.0,104030.0,0.3608]
[1737127800463,0.58539745,104060.0,104030.0,0.3608]
[1737127800662,0.048047,104050.0,104020.0,0.677357]
[1737127800854,0.63344245,104060.0,104030.0,0.408855]
[1737127800855,0.27264045,104060.0,104030.0,0.408855]
[1737127801058,0.01778073,104060.0,104050.0,0.3608]
[1737127801269,0.00144244,104070.0,104050.0,0.408846]
[1737127801467,0.00144244,104070.0,104060.0,0.408841]
[1737127801661,0.00144244,104070.0,104060.0,0.61565772]
[1737127801860,0.30029318,104100.0,104070.0,0.048033]
[1737127802064,0.88236315,104140.0,104090.0,0.92841672]
[1737127802065,1.33243466,104140.0,104090.0,0.92841672]
[1737127802369,0.86714266,104140.0,104110.0,0.048016]
[1737127802672,0.40881,104130.0,104100.0,0.408821]
[1737127803365,1.53925138,104140.0,104100.0,0.408821]
[1737127803366,1.35030548,104140.0,104100.0,0.408821]
[1737127803665,0.21960548,104140.0,104120.0,0.61563072]
[1737127803974,0.00144148,104140.0,104130.0,0.61562572]
[1737127804668,0.2566,104170.0,104150.0,0.047999]
[1737127804867,0.71729318,104180.0,104160.0,0.408795]
[1737127805165,0.20029318,104180.0,104150.0,0.56761672]
[1737127805360,0.20029318,104180.0,104160.0,0.61561072]
[1737127805565,0.61560472,104180.0,104150.0,0.3608]
[1737127805778,0.61560472,104180.0,104150.0,0.61561572]
[1737127805779,0.3608,104180.0,104150.0,0.61561572]
[1737127806068,0.56761672,104160.0,104120.0,0.6179]
[1737127806367,0.558887,104180.0,104140.0,0.61562072]
[1737127806567,0.83641672,104190.0,104140.0,0.56761672]
[1737127806769,0.83641672,104190.0,104150.0,0.61561572]
[1737127806770,0.316784,104190.0,104150.0,0.61561572]
[1737127806974,0.3608,104170.0,104150.0,0.3608]
[1737127807178,0.3608,104160.0,104130.0,0.408808]
[1737127807469,0.3608,104150.0,104120.0,0.6179]
[1737127807668,0.3608,104150.0,104120.0,0.3608]
[1737127807865,0.408801,104150.0,104120.0,0.3608]
[1737127808066,0.408801,104150.0,104120.0,0.408814]
[1737127808262,0.3608,104140.0,104110.0,0.3608]
[1737127808470,0.3608,104140.0,104100.0,1.14353672]
[1737127808471,0.61562672,104130.0,104100.0,0.3608]
[1737127808667,0.61562672,104130.0,104090.0,0.408827]
[1737127808869,0.61563172,104120.0,104090.0,0.408827]
[1737127809075,0.20681672,104110.0,104080.0,0.927831]
[1737127809273,0.408815,104120.0,104080.0,0.927831]
[1737127809766,0.408815,104120.0,104090.0,0.408826]
[1737127809767,0.048014,104120.0,104090.0,0.408826]
[1737127809965,0.56761672,104130.0,104100.0,0.048022]
[1737127809966,0.3608,104130.0,104100.0,0.048022]
[1737127810273,0.3608,104130.0,104100.0,0.408822]
[1737127810679,0.3608,104120.0,104100.0,0.3608]
[1737127810881,0.408814,104120.0,104090.0,0.408827]
[1737127811187,0.3608,104110.0,104090.0,0.408827]
[1737127811472,0.408814,104120.0,104090.0,0.408826]
[1737127811678,0.3608,104130.0,104100.0,0.40882]
[1737127811876,0.56761672,104120.0,104090.0,0.048026]
[1737127812073,0.56761672,104120.0,104080.0,0.519]
[1737127812074,0.25483672,104110.0,104080.0,0.519]
[1737127812279,0.408815,104120.0,104080.0,1.13464772]
[1737127812480,0.3608,104110.0,104080.0,0.927831]
[1737127812882,0.56761672,104100.0,104080.0,0.3608]
[1737127813070,0.56761672,104100.0,104080.0,0.61564672]
[1737127813071,0.3608,104100.0,104080.0,0.61564672]
[1737127813275,0.3608,104110.0,104090.0,0.048025]
[1737127813671,0.408815,104120.0,104090.0,0.048025]
[1737127813872,0.3608,104110.0,104090.0,0.048025]
[1737127814175,0.408815,104120.0,104080.0,0.61564772]
[1737127814378,0.3608,104110.0,104080.0,0.61564472]
[1737127814682,0.3608,104110.0,104090.0,0.048026]
[1737127814881,0.3608,104100.0,104080.0,0.3608]
[1737127815081,0.61564272,104100.0,104070.0,0.00144104]
[1737127815271,0.61564272,104100.0,104070.0,0.04947704]
[1737127815466,0.3608,104080.0,104070.0,0.00144104]
[1737127815668,0.56761672,104080.0,104040.0,0.3608]
[1737127815879,0.61565072,104080.0,104040.0,0.408849]